bitfinex-derivatives/quotes_SOLF0:USTF0_20250323
["timestamp","ask_amount","ask_price","bid_price","bid_amount"]
[1742766774565,7.6365,130.96,130.94,273.22715715]
[1742766775683,7.6371,130.95,130.94,273.22715715]
[1742766795609,7.64,130.95,130.86,1.32905591]
[1742766795804,9.89477675,130.93,130.89,9.89477675]
[1742766796200,7.64,130.9,130.89,9.89477675]
[1742766796910,7.69131274,130.91,130.89,9.89477675]
[1742766797211,0.05161274,130.91,130.9,9.89477675]
[1742766797405,0.05161274,130.91,130.9,36.45477675]
[1742766800914,0.05161274,130.91,130.9,44.09477675]
[1742766836442,7.69101274,130.91,130.9,26.56]
[1742766836841,7.69101274,130.91,130.89,9.89477675]
[1742766837945,7.64,130.9,130.89,9.89477675]
[1742766839244,7.64,130.9,130.88,300.010316]
[1742766840746,7.6406,130.89,130.88,300.010316]
[1742766841445,7.6406,130.89,130.88,273.450316]
[1742766842548,7.6406,130.89,130.88,263.55553925]
[1742766843445,7.6406,130.89,130.88,0.05553925]
[1742766844451,40.6675,130.9,130.88,0.05553925]
[1742766844647,14.1075,130.9,130.88,0.05553925]
[1742766850150,14.1075,130.9,130.88,7.69663925]
[1742766851753,14.1075,130.9,130.88,0.05553925]
[1742766851952,9.89477675,130.89,130.87,26.56]
[1742766852150,9.89477675,130.89,130.85,36.47477675]
[1742766852349,7.6411,130.88,130.85,44.11737675]
[1742766853054,7.69087585,130.88,130.85,44.17314896]
[1742766853255,7.69087585,130.88,130.86,7.6423]
[1742766853457,0.04977585,130.88,130.86,9.89477675]
[1742766854457,0.04977585,130.88,130.87,7.6417]
[1742766861564,0.04977585,130.88,130.86,17.53677675]
[1742766864464,0.04977585,130.88,130.86,7.642]
[1742766864865,0.04977585,130.88,130.87,7.6417]
[1742766870267,7.585e-05,130.88,130.87,17.53647675]
[1742766870469,359.0,130.94,130.87,17.53477675]
[1742766870665,359.0,130.94,130.93,9.89477675]
[1742766870866,359.0,130.94,130.93,34.2182]
[1742766871065,52.40495131,130.96,130.93,34.2182]
[1742766871066,42.51017456,130.96,130.93,36.47477675]
[1742766871261,42.51017456,130.96,130.95,9.89477675]
[1742766871467,42.56542048,130.96,130.95,17.53187675]
[1742766873673,0.05524592,130.96,130.95,17.53187675]
[1742766874171,0.05524592,130.96,130.95,9.89477675]
[1742766877173,0.05524592,130.96,130.95,17.53187675]
[1742766888385,0.05524592,130.96,130.94,7.6374]
[1742766888683,0.05524592,130.96,130.95,9.89477675]
[1742766889186,0.05524592,130.96,130.95,17.53187675]
[1742766892987,0.05524592,130.96,130.95,9.89477675]
[1742766893284,7.69174592,130.96,130.95,36.45477675]
[1742766893685,7.69174592,130.96,130.95,26.56]
[1742766894391,0.05524592,130.96,130.94,26.56]
[1742766894782,4.20554592,130.96,130.93,9.94562047]
[1742766894983,7.6376,130.94,130.93,0.05084372]
[1742766896301,7.6388,130.92,130.91,263.6]
[1742766897096,7.6388,130.92,130.91,260.3502]
[1742766897702,7.6388,130.92,130.91,257.1004]
[1742766898197,7.6394,130.91,130.9,0.04822229]
[1742766899401,0.04993629,130.93,130.9,9.94299904]
[1742766899702,0.04993629,130.93,130.91,9.89477675]
[1742766900099,7.68853629,130.93,130.91,9.89477675]
[1742766900400,0.04993629,130.93,130.92,9.89477675]
[1742766902002,0.04993629,130.93,130.91,17.53387675]
[1742766903398,0.04993629,130.93,130.92,7.6388]
[1742766903605,359.0,130.97,130.92,273.33477675]
[1742766903794,359.0,130.97,130.94,9.89477675]
[1742766903999,359.0,130.97,130.95,7.6367]
[1742766904803,359.05454087,130.97,130.95,7.68779416]
[1742766906902,359.05454087,130.97,130.96,7.6365]
[1742766907302,359.05454087,130.97,130.96,34.3365]
[1742766911605,359.05454087,130.97,130.96,26.7]
[1742766912503,0.05454087,130.97,130.96,26.7]
[1742766914106,7.69044087,130.97,130.96,26.7]
[1742766914307,0.05454087,130.97,130.96,26.7]
[1742766916902,0.05454087,130.97,130.96,34.3365]
[1742766918306,0.05454087,130.97,130.96,44.23127675]
[1742766926614,4.087e-05,130.97,130.96,44.23127675]
[1742766929019,4.087e-05,130.97,130.96,36.59477675]
[1742766935019,7.63594087,130.97,130.96,36.59477675]
[1742766935324,7.63594087,130.97,130.96,9.89477675]
[1742766935526,9.89481762,130.97,130.91,36.61477675]
[1742766935823,9.89477675,130.95,130.91,9.89477675]
[1742766936117,9.89477675,130.95,130.91,36.61477675]
[1742766936313,7.6388,130.92,130.91,36.61477675]
[1742766936517,9.89477675,130.95,130.91,36.61477675]
[1742766936816,7.68902401,130.93,130.91,36.61477675]
[1742766937219,0.05052401,130.93,130.92,9.89477675]
[1742766938522,0.05052401,130.93,130.92,17.53357675]
[1742766943424,9.89477675,130.99,130.95,7.637]
[1742766943620,9.89477675,131.0,130.95,36.63477675]
[1742766943825,359.0,131.01,130.99,9.89477675]
[1742766944025,635.65787201,131.05,131.02,7.633]
[1742766944026,94.65787201,131.05,131.02,7.633]
[1742766944227,84.76309526,131.05,131.02,44.32777675]
[1742766944622,65.23621007,131.04,131.02,34.48543739]
[1742766944820,65.23621007,131.04,131.02,26.85243739]
[1742766945226,0.05859156,131.04,131.02,26.85243739]
[1742766946934,9.89477675,131.03,131.02,0.05243739]
[1742766947231,36.75477675,131.03,130.98,36.75477675]
[1742766947526,9.89477675,131.02,130.98,44.38967675]
[1742766947728,9.89477675,131.02,130.98,36.75477675]
[1742766947927,9.89477675,131.02,130.99,7.6346]
[1742766948323,9.9510706,131.02,130.99,7.69052906]
[1742766948929,0.05629385,131.02,130.99,17.58530581]
[1742766949429,0.05629385,131.02,131.0,7.6341]
[1742766951330,0.05629385,131.02,131.0,17.52887675]
[1742766951629,0.05629385,131.02,131.01,7.6336]
[1742766953932,0.05629385,131.02,131.0,17.52857675]
[1742766954529,0.05629385,131.02,131.0,7.6338]
[1742766960540,0.05629385,131.02,131.0,17.52857675]
[1742766962036,0.05629385,131.02,131.0,7.6338]
[1742766967839,7.68929385,131.02,131.0,7.6338]
[1742766968237,7.68929385,131.02,130.99,17.58520581]
[1742766969840,7.6336,131.01,130.99,17.58520581]
[1742766970439,7.6336,131.01,130.99,9.95070581]
[1742766971139,7.68959385,131.02,130.99,17.58540581]
[1742766971340,0.05629385,131.02,130.99,9.95070581]
[1742766971842,7.68959385,131.02,130.99,17.58510581]
[1742767001151,9.9510706,131.02,130.99,0.05592906]
[1742767001449,9.89477675,131.01,130.99,0.05592906]
[1742767001650,17.52887675,131.0,130.99,0.05592906]
[1742767022475,7.6341,131.0,130.99,0.05592906]
[1742767022678,7.6337,131.01,130.99,9.95070581]
[1742767023479,7.6337,131.01,131.0,9.89477675]
[1742767023677,7.6337,131.01,130.99,9.95070581]
[1742767024179,7.6337,131.01,130.99,17.58530581]
[1742767025179,7.6337,131.01,130.99,7.69052906]
[1742767025379,7.6341,131.0,130.99,0.05592906]
[1742767025779,17.52887675,131.0,130.99,0.05592906]
[1742767028582,7.6341,131.0,130.99,0.05592906]
[1742767047898,7.6339,131.01,130.99,0.05592906]
[1742767048097,0.05629385,131.02,130.99,36.61070581]
[1742767048596,7.68969385,131.02,130.99,44.24510581]
[1742767048795,0.05629385,131.02,130.99,44.24510581]
[1742767050197,7.6336,131.01,130.99,36.61070581]
[1742767053499,7.6341,131.0,130.99,36.61070581]
[1742767056608,7.6341,131.0,130.99,26.71592906]
[1742767060809,17.52887675,131.0,130.99,0.05592906]
[1742767062008,7.6341,131.0,130.99,0.05592906]
[1742767062205,7.6338,131.01,130.99,0.05592906]
[1742767065008,7.6338,131.01,130.99,7.69062906]
[1742767065911,7.6338,131.01,130.99,0.05592906]
[1742767068614,9.9510706,131.02,131.0,9.89477675]
[1742767068615,0.05629385,131.02,131.0,9.89477675]
[1742767068916,0.05629385,131.02,131.01,9.89477675]
[1742767070102,0.05629385,131.02,131.01,17.52837675]
[1742767099144,359.0,131.07,131.06,7.6307]
[1742767099439,369.6569878,131.11,131.06,299.95477675]
[1742767099743,369.6569878,131.11,131.09,9.89477675]
[1742767099943,369.6569878,131.11,131.09,36.67477675]
[1742767100139,10.6569878,131.11,131.1,17.52307675]
[1742767100441,42.55960089,131.11,131.09,26.83676779]
[1742767101546,9.89477675,131.1,131.07,26.78]
[1742767101747,9.89477675,131.09,131.06,263.28]
[1742767102145,17.52397675,131.09,131.06,263.28]
[1742767102747,17.52397675,131.09,131.06,263.32890188]
[1742767103347,7.6295,131.08,131.06,263.32890188]
[1742767103843,7.68086407,131.08,131.06,263.32890188]
[1742767105955,7.6301,131.07,131.06,263.32890188]
[1742767108449,7.6301,131.07,131.06,0.04890188]
[1742767110964,17.52487675,131.07,131.06,0.04890188]
[1742767111653,0.05136407,131.08,131.06,9.94367863]
[1742767111862,116.61628202,131.14,131.07,273.11477675]
[1742767112054,116.61628202,131.14,131.12,9.89477675]
[1742767112259,116.61628202,131.14,131.12,44.84197675]
[1742767113058,116.67358498,131.14,131.12,44.84197675]
[1742767113561,84.76309526,131.13,131.12,44.84197675]
[1742767115663,84.76309526,131.13,131.12,27.32]
[1742767115860,84.76309526,131.13,131.11,9.94823129]
[1742767116064,94.65787201,131.13,131.11,0.05345454]
[1742767117465,23.76097971,131.14,131.11,0.05345454]
[1742767117965,6.23980296,131.14,131.11,9.94823129]
[1742767118164,2.06830296,131.14,131.12,9.89477675]
[1742767118367,2.06830296,131.14,131.12,17.52197675]
[1742767118664,2.06830296,131.14,131.12,9.89477675]
[1742767121467,2.06830296,131.14,131.11,17.57573129]
[1742767122866,0.05730296,131.14,131.11,17.57573129]
[1742767123059,0.05730296,131.14,131.12,17.52177675]
[1742767124969,0.05730296,131.14,131.13,7.6266]
[1742767130172,0.05730296,131.14,131.13,17.52137675]
[1742767131175,2.96e-06,131.14,131.13,17.52137675]
[1742767131479,2.96e-06,131.14,131.13,280.60137675]
[1742767148884,359.0,131.2,131.18,7.6233]
[1742767149080,359.0,131.2,131.18,27.18]
[1742767149684,359.0,131.2,131.19,7.6231]
[1742767150184,359.0,131.2,131.18,34.85660913]
[1742767154586,368.89477675,131.2,131.18,27.23320913]
[1742767154786,9.89477675,131.19,131.18,0.05320913]
[1742767155285,17.51787675,131.19,131.18,0.05320913]
[1742767155683,376.51747675,131.2,131.18,0.05320913]
[1742767155884,359.0,131.2,131.18,0.05320913]
[1742767156579,359.0,131.2,131.18,7.67660913]
[1742767159187,366.6225,131.2,131.18,7.67660913]
[1742767161692,366.6225,131.2,131.18,0.05320913]
[1742767165693,7.6231,131.19,131.18,0.05320913]
[1742767166097,17.51787675,131.19,131.18,0.05320913]
[1742767166694,7.6231,131.19,131.18,0.05320913]
[1742767167197,7.6256,131.15,131.14,36.93477675]
[1742767167395,7.6256,131.15,131.14,27.04]
[1742767167699,9.89477675,131.15,131.13,263.08]
[1742767167887,9.89477675,131.15,131.11,9.89477675]
[1742767168391,0.05529315,131.14,131.12,0.04882835]
[1742767168597,7.6269,131.13,131.12,0.04882835]
[1742767174904,7.6269,131.13,131.12,9.9436051]
[1742767175102,7.68159315,131.14,131.12,9.9436051]
[1742767175305,7.68159315,131.14,131.13,9.89477675]
[1742767177107,7.68159315,131.14,131.12,9.9436051]
[1742767177707,7.6266,131.13,131.12,9.9436051]
[1742767185722,9.89477675,131.13,131.09,9.89477675]
[1742767185920,41.06227675,131.13,131.09,9.89477675]
[1742767186122,9.89477675,131.12,131.09,9.89477675]
[1742767186421,7.6283,131.1,131.09,9.89477675]
[1742767191022,0.05192986,131.11,131.08,272.92768618]
[1742767191717,7.6289,131.09,131.08,272.92768618]
[1742767192923,0.05192986,131.11,131.08,272.92768618]
[1742767193125,9.94670661,131.11,131.08,272.92768618]
[1742767194431,7.6288,131.1,131.08,272.92768618]
[1742767198436,7.6289,131.09,131.08,272.92768618]
[1742767199938,7.6286,131.1,131.08,272.92768618]
[1742767200233,0.05192986,131.11,131.08,263.03290943]
[1742767200437,7.6287,131.1,131.08,272.92768618]
[1742767200638,0.05192986,131.11,131.09,9.89477675]
[1742767200836,0.05192986,131.11,131.08,289.95290943]
[1742767201132,0.05192986,131.11,131.09,9.89477675]
[1742767201836,0.05192986,131.11,131.1,9.89477675]
[1742767202232,0.05192986,131.11,131.1,17.52307675]
[1742767204437,359.0,131.15,131.1,9.89477675]
[1742767204636,359.0,131.15,131.13,9.89477675]
[1742767204936,359.0,131.15,131.13,36.87477675]
[1742767205537,359.0503238,131.15,131.14,7.626]
[1742767205738,0.0503238,131.15,131.14,17.52077675]
[1742767207139,0.0503238,131.15,131.14,7.626]
[1742767208137,0.0503238,131.15,131.14,17.52077675]
[1742767208539,0.0503238,131.15,131.13,44.55731674]
[1742767212046,0.0503238,131.15,131.14,17.52077675]
[1742767214648,2.38e-05,131.15,131.14,17.52077675]
[1742767215146,2.38e-05,131.15,131.14,19.50477675]
[1742767216749,2.38e-05,131.15,131.14,282.56477675]
[1742767218045,2.38e-05,131.15,131.14,286.77787675]
[1742767218242,359.0,131.24,131.14,286.77187675]
[1742767218449,9.89477675,131.23,131.19,9.89477675]
[1742767218754,368.89477675,131.24,131.21,7.6216]
[1742767219050,376.51517675,131.24,131.21,7.6216]
[1742767219455,376.51517675,131.24,131.21,7.67852462]
[1742767220144,376.51517675,131.24,131.21,0.05692462]
[1742767220352,9.89477675,131.23,131.21,0.05692462]
[1742767220550,9.89477675,131.22,131.21,0.05692462]
[1742767220851,17.51607675,131.22,131.21,0.05692462]
[1742767223555,7.6213,131.22,131.21,0.05692462]
[1742767226949,17.51607675,131.22,131.21,0.05692462]
[1742767228956,7.6213,131.22,131.21,0.05692462]
[1742767229658,17.51607675,131.22,131.21,0.05692462]
[1742767252183,9.89477675,131.22,131.21,0.05692462]
[1742767252388,359.0,131.24,131.21,0.05692462]
[1742767252389,368.89477675,131.24,131.21,0.05692462]
[1742767252585,359.0,131.24,131.21,9.95170137]
[1742767252886,359.0,131.24,131.23,7.6208]
[1742767254390,359.0,131.24,131.22,7.6211]
[1742767254893,17.51557675,131.23,131.21,0.05692462]
[1742767255191,368.89477675,131.24,131.21,0.05692462]
[1742767255580,376.51527675,131.24,131.21,7.67852462]
[1742767259390,366.6205,131.24,131.21,17.57330137]
[1742767260294,366.6205,131.24,131.22,7.6213]
[1742767262294,376.51527675,131.24,131.21,7.67852462]
[1742767262492,9.89477675,131.22,131.21,0.05692462]
[1742767263806,17.51607675,131.22,131.21,0.05692462]
[1742767266407,7.6213,131.22,131.21,0.05692462]
[1742767266605,35.201,131.23,131.21,0.05692462]
[1742767268007,45.09577675,131.23,131.21,0.05692462]
[1742767268306,7.6213,131.22,131.21,0.05692462]
[1742767270012,17.51607675,131.22,131.21,0.05692462]
[1742767275307,7.6213,131.22,131.21,0.05692462]
[1742767275512,17.51607675,131.22,131.21,0.05692462]
[1742767279505,7.6213,131.22,131.21,0.05692462]
[1742767279914,17.51607675,131.22,131.21,0.05692462]
[1742767294630,7.6213,131.22,131.21,0.05692462]
[1742767294829,17.51607675,131.22,131.21,0.05692462]
[1742767296125,7.6213,131.22,131.21,0.05692462]
[1742767296330,359.0,131.24,131.21,9.95170137]
[1742767296732,359.0,131.24,131.22,7.6209]
[1742767297925,366.6202,131.24,131.22,7.6209]
[1742767298435,359.0,131.24,131.23,17.51557675]
[1742767299525,359.0,131.24,131.22,44.83567675]
[1742767299933,9.89477675,131.25,131.22,37.21477675]
[1742767300529,7.6205,131.24,131.22,37.21477675]
[1742767302335,17.51467675,131.25,131.22,44.83607675]
[1742767302538,9.89477675,131.25,131.22,37.21477675]
[1742767303036,17.51487675,131.25,131.22,44.83587675]
[1742767303238,9.89477675,131.25,131.22,37.21477675]
[1742767303435,7.6194,131.26,131.23,17.51527675]
[1742767303932,7.6194,131.26,131.23,17.57008636]
[1742767304345,17.51417675,131.26,131.23,17.57008636]
[1742767304540,17.51417675,131.26,131.23,7.67530961]
[1742767305948,7.6197,131.25,131.23,0.05480961]
[1742767308149,17.51447675,131.25,131.23,0.05480961]
[1742767309247,17.51447675,131.25,131.23,7.67550961]
[1742767309449,17.51447675,131.25,131.23,0.05480961]
[1742767310043,9.89477675,131.25,131.23,0.05480961]
[1742767310752,17.51467675,131.25,131.23,0.05480961]
[1742767310947,9.89477675,131.25,131.23,7.67530961]
[1742767312148,17.51437675,131.25,131.23,7.67530961]
[1742767312349,17.51437675,131.25,131.23,0.05480961]
[1742767313352,7.6196,131.25,131.23,0.05480961]
[1742767313545,7.6196,131.25,131.23,9.94958636]
[1742767313746,17.51367675,131.27,131.24,9.89477675]
[1742767313953,17.51367675,131.27,131.25,27.2]
[1742767314451,366.6181,131.28,131.25,34.8196]
[1742767314643,9.89477675,131.27,131.25,27.2]
[1742767315152,359.0,131.28,131.25,27.2]
[1742767315357,7.6184,131.27,131.25,27.2]
[1742767315548,17.51317675,131.27,131.25,27.2]
[1742767316247,9.89477675,131.27,131.25,27.2]
[1742767317053,359.0,131.28,131.26,9.89477675]
[1742767317252,359.0,131.28,131.25,27.2]
[1742767317447,368.89477675,131.28,131.25,27.2]
[1742767317650,9.89477675,131.27,131.25,27.24888354]
[1742767317849,368.89477675,131.28,131.25,27.24888354]
[1742767318149,386.32,131.27,131.25,0.04888354]
[1742767318352,9.89477675,131.26,131.25,0.04888354]
[1742767319149,386.32,131.27,131.25,9.94366029]
[1742767319551,359.0,131.27,131.25,0.04888354]
[1742767320356,359.0,131.27,131.25,7.66838354]
[1742767321753,17.51267675,131.28,131.25,17.56316029]
[1742767322252,9.89477675,131.27,131.25,0.04888354]
[1742767322448,9.89477675,131.26,131.25,0.04888354]
[1742767322652,9.89477675,131.27,131.25,0.04888354]
[1742767323545,17.51337675,131.27,131.25,0.04888354]
[1742767324460,7.619,131.26,131.25,0.04888354]
[1742767325358,17.51347675,131.27,131.25,0.04888354]
[1742767325551,9.89477675,131.27,131.25,0.04888354]
[1742767326049,17.51377675,131.26,131.25,0.04888354]
[1742767326353,17.51377675,131.26,131.21,262.88]
[1742767326354,9.89477675,131.26,131.21,262.88]
[1742767326552,7.6205,131.24,131.21,280.39627675]
[1742767326751,9.89477675,131.25,131.21,272.77477675]
[1742767327157,17.51477675,131.25,131.22,7.6211]
[1742767327553,17.56380443,131.25,131.22,7.67056223]
[1742767327857,17.56380443,131.25,131.22,0.04946223]
[1742767328461,17.56380443,131.25,131.22,7.67066223]
[1742767328656,17.56380443,131.25,131.22,0.04946223]
[1742767328856,9.94380443,131.25,131.22,0.04946223]
[1742767329657,17.56370443,131.25,131.22,0.04946223]
[1742767330451,17.56370443,131.25,131.22,7.67056223]
[1742767330658,0.04902768,131.25,131.22,9.94423898]
[1742767331155,0.04902768,131.25,131.23,7.6204]
[1742767332762,17.56350443,131.25,131.22,7.67066223]
[1742767333057,7.66872768,131.25,131.22,7.67066223]
[1742767333250,0.04902768,131.25,131.23,7.6207]
[1742767335763,0.04902768,131.25,131.24,7.6202]
[1742767336462,0.04902768,131.25,131.23,7.6205]
[1742767336858,9.94380443,131.25,131.23,7.6205]
[1742767337555,0.04902768,131.25,131.23,7.6205]
[1742767338663,7.66862768,131.25,131.22,17.56533898]
[1742767340259,7.66862768,131.25,131.22,7.67056223]
[1742767340465,9.94380443,131.25,131.23,7.6207]
[1742767340665,9.94380443,131.25,131.22,0.04946223]
[1742767340866,17.56340443,131.25,131.22,7.67036223]
[1742767341661,17.56340443,131.25,131.23,7.6207]
[1742767341864,7.66862768,131.25,131.23,7.6207]
[1742767343668,0.04902768,131.25,131.23,17.51547675]
[1742767343966,0.04902768,131.25,131.24,7.6202]
[1742767344166,0.04902768,131.25,131.22,9.94423898]
[1742767344560,0.04902768,131.25,131.23,7.6205]
[1742767346674,0.04902768,131.25,131.24,7.6202]
[1742767346870,9.94380443,131.25,131.22,0.04946223]
[1742767347063,9.89477675,131.23,131.22,0.04946223]
[1742767347370,17.51557675,131.23,131.22,0.04946223]
[1742767347565,27.54902768,131.25,131.22,0.04946223]
[1742767347566,0.04902768,131.25,131.22,37.44423898]
[1742767347775,0.04902768,131.25,131.24,17.51497675]
[1742767348073,55.53387013,131.33,131.24,9.89477675]
[1742767348367,9.89477675,131.31,131.26,9.89477675]
[1742767348577,9.89477675,131.28,131.24,9.89477675]
[1742767348868,81.44423088,131.33,131.3,7.6166]
[1742767349066,46.24903088,131.33,131.27,27.62]
[1742767349268,42.27773088,131.33,131.31,9.89477675]
[1742767349465,42.27773088,131.33,131.32,9.89477675]
[1742767349859,52.17250763,131.33,131.29,0.04919108]
[1742767350060,17.51147675,131.3,131.29,0.04919108]
[1742767350261,368.89477675,131.34,131.29,9.94396783]
[1742767350464,7.6153,131.33,131.3,37.65477675]
[1742767350663,368.89477675,131.34,131.3,37.65477675]
[1742767350873,9.89477675,131.31,131.29,0.04919108]
[1742767351174,7.6167,131.3,131.29,0.04919108]
[1742767351466,386.76,131.33,131.29,9.94396783]
[1742767351666,9.89477675,131.31,131.29,0.04919108]
[1742767352067,17.51147675,131.3,131.29,0.04919108]
[1742767352265,45.35147675,131.3,131.29,0.04919108]
[1742767352467,27.84,131.3,131.29,9.94396783]
[1742767352771,2.0759,131.32,131.29,9.94396783]
[1742767353162,7.6157,131.32,131.29,9.94396783]
[1742767353470,359.0,131.33,131.31,9.89477675]
[1742767353668,9.89477675,131.32,131.29,0.04919108]
[1742767353871,9.89477675,131.32,131.29,9.94396783]
[1742767354170,9.89477675,131.3,131.29,0.04919108]
[1742767354368,376.51147675,131.3,131.29,0.04919108]
[1742767359678,376.51147675,131.3,131.29,9.108e-05]
[1742767359878,382.77317675,131.3,131.29,9.108e-05]
[1742767362173,375.15647675,131.3,131.23,34.4224]
[1742767362379,9.89477675,131.26,131.23,28.28]
[1742767362578,28.26,131.28,131.24,9.89477675]
[1742767362879,9.89477675,131.27,131.24,9.89477675]
[1742767363081,9.89477675,131.27,131.23,45.79527675]
[1742767363476,7.67363224,131.26,131.24,0.05381123]
[1742767363681,0.05423224,131.26,131.24,0.05381123]
[1742767363878,17.51437675,131.25,131.24,0.05381123]
[1742767364275,7.6196,131.25,131.24,0.05381123]
[1742767364477,17.51437675,131.25,131.24,0.05381123]
[1742767364971,28.33423224,131.26,131.23,9.89477675]
[1742767365276,9.89477675,131.24,131.21,28.32]
[1742767365676,9.89477675,131.23,131.19,45.85747675]
[1742767365871,17.51577675,131.23,131.19,45.85747675]
[1742767366071,17.51577675,131.23,131.21,9.89477675]
[1742767366072,0.05808968,131.22,131.21,9.89477675]
[1742767367885,9.95286643,131.22,131.2,28.37242326]
[1742767368183,0.05808968,131.22,131.2,0.05242326]
[1742767368577,7.67988968,131.22,131.2,0.05242326]
[1742767368781,7.67988968,131.22,131.2,9.94720001]
[1742767369786,7.6219,131.21,131.2,9.94720001]
[1742767370083,7.6219,131.21,131.2,0.05242326]
[1742767370284,7.67968968,131.22,131.2,0.05242326]
[1742767370483,7.67968968,131.22,131.2,9.94720001]
[1742767370879,0.05808968,131.22,131.2,0.05242326]
[1742767371173,9.89477675,131.21,131.16,4.2762]
[1742767371378,9.89477675,131.2,131.16,9.89477675]
[1742767371575,7.6223,131.21,131.18,17.51817675]
[1742767371780,359.0,131.22,131.2,9.89477675]
[1742767371981,28.28,131.24,131.21,9.89477675]
[1742767372180,9.89477675,131.23,131.19,9.89477675]
[1742767372583,9.89477675,131.23,131.21,0.05065237]
[1742767372786,7.6213,131.22,131.21,0.05065237]
[1742767373687,376.51607675,131.22,131.21,0.05065237]
[1742767375885,359.0,131.22,131.21,0.05065237]
[1742767376588,0.05121606,131.24,131.21,9.94542912]
[1742767376891,0.05121606,131.24,131.22,9.89477675]
[1742767377089,9.94599281,131.24,131.21,7.67235237]
[1742767378492,7.6208,131.23,131.21,7.67235237]
[1742767378692,7.6208,131.23,131.21,17.56712912]
[1742767378893,0.05121606,131.24,131.22,7.6213]
[1742767379087,0.05121606,131.24,131.22,17.51607675]
[1742767379998,0.05121606,131.24,131.22,9.89477675]
[1742767380295,0.05121606,131.24,131.23,9.89477675]
[1742767380590,0.05121606,131.24,131.22,28.24]
[1742767381094,0.05121606,131.24,131.23,17.51557675]
[1742767381486,0.05121606,131.24,131.23,9.89477675]
[1742767381690,0.05121606,131.24,131.22,38.13477675]
[1742767382089,0.05121606,131.24,131.22,45.75587675]
[1742767382392,9.89477675,131.29,131.23,9.89477675]
[1742767382690,17.51237675,131.29,131.26,17.51347675]
[1742767383288,17.51267675,131.28,131.25,35.9195]
[1742767383684,17.5685367,131.28,131.25,35.97424681]
[1742767384991,7.67375995,131.28,131.25,35.97424681]
[1742767385288,0.05585995,131.28,131.27,9.89477675]
[1742767385688,9.89477675,131.33,131.27,9.89477675]
[1742767385992,9.89477675,131.33,131.29,9.89477675]
[1742767386190,9.89477675,131.32,131.28,38.13477675]
[1742767386787,7.66523034,131.31,131.29,0.05427312]
[1742767387193,17.51147675,131.3,131.29,0.05427312]
[1742767390496,7.6167,131.3,131.29,0.05427312]
[1742767390688,0.04883034,131.31,131.29,9.94904987]
[1742767391687,0.04883034,131.31,131.29,0.05427312]
[1742767392100,7.66533034,131.31,131.29,0.05427312]
[1742767392694,7.6167,131.3,131.29,0.05427312]
[1742767392895,17.51147675,131.3,131.29,0.05427312]
[1742767393888,7.6167,131.3,131.29,0.05427312]
[1742767394094,0.04883034,131.31,131.29,0.05427312]
[1742767394599,7.66523034,131.31,131.29,0.05427312]
[1742767395399,0.04883034,131.31,131.29,0.05427312]
[1742767395800,0.04883034,131.31,131.3,17.51147675]
[1742767396001,0.04883034,131.31,131.3,9.89477675]
[1742767396198,0.04883034,131.31,131.29,9.94904987]
[1742767396400,0.04883034,131.31,131.29,0.05427312]
[1742767396903,7.66523034,131.31,131.29,0.05427312]
[1742767397204,0.04883034,131.31,131.29,9.94904987]
[1742767397405,0.04883034,131.31,131.3,9.89477675]
[1742767397607,0.04883034,131.31,131.3,7.6167]
[1742767398201,0.04883034,131.31,131.29,17.56604987]
[1742767398609,0.04883034,131.31,131.29,9.94904987]
[1742767398804,0.04883034,131.31,131.3,7.6167]
[1742767400309,0.04883034,131.31,131.3,17.51147675]
[1742767400501,0.04883034,131.31,131.3,9.89477675]
[1742767401508,0.04883034,131.31,131.3,45.57147675]
[1742767403512,0.04883034,131.31,131.3,35.6767]
[1742767404608,0.04883034,131.31,131.3,28.06]
[1742767404809,9.94360709,131.31,131.29,0.05427312]
[1742767405009,9.89477675,131.3,131.29,0.05427312]
[1742767405313,9.94360709,131.31,131.29,0.05427312]
[1742767406511,7.6167,131.3,131.29,0.05427312]
[1742767406810,9.89477675,131.3,131.29,0.05427312]
[1742767407115,7.6167,131.3,131.29,0.05427312]
[1742767407612,17.56000709,131.31,131.29,0.05427312]
[1742767407912,7.66523034,131.31,131.29,0.05427312]
[1742767409106,7.6167,131.3,131.29,0.05427312]
[1742767412315,17.51147675,131.3,131.29,0.05427312]
[1742767414816,9.89477675,131.3,131.23,262.88]
[1742767415014,9.89477675,131.28,131.24,9.89477675]
[1742767415215,9.89477675,131.3,131.26,9.89477675]
[1742767416012,0.05677897,131.29,131.27,9.9501625]
[1742767416215,0.05677897,131.29,131.28,9.89477675]
[1742767416415,7.67407897,131.29,131.28,9.89477675]
[1742767416616,7.67407897,131.29,131.27,37.9301625]
[1742767416919,0.05677897,131.29,131.27,45.5482625]
[1742767417114,0.05677897,131.29,131.28,9.89477675]